Cogmind - Beta 14 @@@ ROGUE MODE // 2024.08.26 @ 19:46:05 Player: Daffa0360 Result: Destroyed by Y0-FUJ(R) with Subdweller Laser Performance ------------- Evolutions (0) 0 Regions Visited (3) 600 Robots Destroyed (26) 130 Value Destroyed (614) 614 Prototype IDs (15) 300 Alien Tech Used (0) 0 Bonus (0) 0 TOTAL SCORE: 1644 Bonus ------- None Cogmind --------- Core Integrity 0/250 Matter 295/300 Energy 26/100 System Corruption 0% Temperature Cool (6) Movement Rolling (110) Location -10/Subcaves Parts ------- > --- POWER (1) -------- (None) > --- PROPULSION (2) --- Subdweller Monowheel > --- UTILITY (2) ------ (None) > --- WEAPON (2) ------- Subdweller Laser > --- INVENTORY (5) ---- Aluminum Leg Makeshift Light Armor Plating Reflective Plating Multitool Axe Peak State ------------ > --- POWER ------------ Makeshift Power Source > --- PROPULSION ------- Compact Wheel Subdweller Monowheel > --- UTILITY ---------- Small Storage Unit Seismic Detector > --- WEAPON ----------- Powered Cannon > --- INVENTORY -------- Aluminum Leg Makeshift Light Armor Plating Reflective Plating Subdweller Laser Improved Datajack Multitool [Rating: 24] Favorites ----------- Power Ion Engine Engine Ion Engine Propulsion Aluminum Leg Leg Aluminum Leg Wheel Compact Wheel Utility Small Storage Unit Device Seismic Detector Storage Small Storage Unit Weapon Assault Rifle Energy Gun Subdweller Laser Energy Cannon Powered Cannon Ballistic Gun Assault Rifle Ballistic Cannon Battle Cannon Launcher Grenade Launcher Slashing Weapon Axe Build | -11 -10 -10 -10 ------- Run | Yrd Mat Min Sub Slots Evolved . | . . . . Power . | . . . . Propulsion . | . . . . Utility . | . . . . Weapon . | . . . . Parts Attached 19 | . 1 6 12 Power 2 | . . . 2 Engine 2 | . . . 2 Core . | . . . . Reactor . | . . . . Propulsion 3 | . . . 3 Treads . | . . . . Leg . | . . . . Wheel 3 | . . . 3 Hover . | . . . . Flight . | . . . . Utility 1 | . 1 . . Device 1 | . 1 . . Storage . | . . . . Processor . | . . . . Hackware . | . . . . Protection . | . . . . Artifact . | . . . . Weapon 13 | . . 6 7 Energy Gun 6 | . . 3 3 Energy Cannon 1 | . . . 1 Ballistic Gun . | . . . . Ballistic Cannon 3 | . . 2 1 Launcher 2 | . . 1 1 Special Weapon . | . . . . Impact Weapon . | . . . . Slashing Weapon 1 | . . . 1 Piercing Weapon . | . . . . Special Melee Weapon . | . . . . Unidentified Prototypes . | . . . . Parts Lost 13 | . . 1 12 Power 3 | . . . 3 Propulsion 3 | . . . 3 Utility 2 | . . . 2 Weapon 5 | . . 1 4 Highest Loss Streak 5 | . . 1 5 To Critical Strikes . | . . . . Average Slot Usage (%) 90 | . 88 93 88 Engine 13 | . 14 14 12 Leg 15 | . 28 28 5 Wheel 10 | . . . 19 Device 12 | . 2 14 13 Storage 13 | . 14 14 13 Energy Gun 10 | . 14 8 12 Energy Cannon 2 | . . . 3 Ballistic Gun 3 | . 14 7 . Ballistic Cannon 1 | . . 3 1 Launcher 1 | . . 3 . Slashing Weapon 2 | . . . 4 Peak Build Rating 24 | 6 8 13 24 Average Rating 12 | 6 6 8 16 On Entrance 8 | 6 6 8 13 Naked Turns . | . . . . Heaviest Build 20 | 14 15 19 20 Greatest Support 36 | 20 20 20 36 Greatest Overweight (x) 1 | . . . 1 Average Overweight (x) . | . . . . Largest Inventory Capacity 8 | 8 8 8 8 Average Capacity 7 | 8 8 8 7 Most Carried 8 | 8 8 8 8 Average Carried 7 | 6 7 7 6 Final Capacity 8 | 8 8 8 5 Final Carried 8 | 6 8 7 5 Class Distribution -------------------- 100% | Mutant Dominant Class ---------------- Mutant | -10/Materials Mutant | -10/Mines Mutant | -10/Subcaves Resources | -11 -10 -10 -10 ----------- Run | Yrd Mat Min Sub Matter Collected 553 | 230 . 168 155 Remotely . | . . . . Salvage Created 698 | 154 16 105 423 Parts 44 | 5 2 7 30 Haulers Intercepted . | . . . . Recyclers Shooed . | . . . . Parts Field Recycled . | . . . . Retrieved Matter . | . . . . Parts Self-Destructed 16 | . . . 16 Prevented . | . . . . Kills | -11 -10 -10 -10 ------- Run | Yrd Mat Min Sub Combat Hostiles Destroyed 21 | . . 6 15 Melee 1 | . . . 1 Guns 9 | . . 3 6 Cannons 8 | . . 1 7 AOE 3 | . . 2 1 Classes Destroyed 9 | 2 1 4 2 Worker 1 | . . 1 . Tunneler 2 | 2 . . . Recycler 1 | 1 . . . Operator 1 | . 1 . . Swarmer 9 | . . 3 6 Grunt 4 | . . 2 2 Sentry 1 | . . . 1 Demolisher 1 | . . 1 . Subdweller 6 | . . . 6 Best Kill Streak 4 | 2 1 4 4 Combat Bots Only 4 | . . 3 4 Max Kills in Single Turn 2 | 1 1 2 1 Gunslinging . | . . . . Exploded 1 | . . 1 1 Melee 1 | . . . 1 Uniques/NPCs Destroyed . | . . . . Combat | -11 -10 -10 -10 -------- Run | Yrd Mat Min Sub Hostile Shots Fired 95 | . . 29 66 Missed 19 | . . 5 14 Damage Taken 1488 | . . 603 885 Core 260 | . . 123 137 Absorbed by Shields . | . . . . Core Remaining (%) 100 | 100 . . . Volleys Fired 80 | 10 4 21 45 Largest 2 | 2 2 2 2 Hottest 135 | 70 70 75 135 Shots Fired 120 | 20 8 33 59 Gun 79 | 20 8 20 31 Cannon 37 | . . 11 26 Launcher 4 | . . 2 2 Special . | . . . . Kinetic 43 | 10 4 23 6 Thermal 73 | 10 4 8 51 Explosive 4 | . . 2 2 Electromagnetic . | . . . . Robot Hit Streak 10 | 6 6 4 10 Robot Miss Streak 4 | 2 2 2 4 Penetration Max . | . . . . Secondary Targets 1 | . . . 1 Max Gunslinging Chain 1 | . . . 1 Shots Hit Robots 80 | 12 5 20 43 Core Hits 34 | 4 2 10 18 Critical Kills . | . . . . Critical Parts Destroyed . | . . . . Critical Strikes 4 | 1 1 1 1 Burn 3 | 1 1 . 1 Destroy 1 | . . 1 . Melee Attacks 8 | . . . 8 Impact . | . . . . Slashing 8 | . . . 8 Piercing . | . . . . Sneak Attacks . | . . . . Combat Hostiles . | . . . . Follow-up Attacks . | . . . . Damage Inflicted 2105 | 166 62 453 1424 Guns 813 | 166 62 150 435 Cannons 914 | . . 168 746 Explosions 290 | . . 135 155 Melee 88 | . . . 88 Ramming . | . . . . Kinetic 435 | 78 24 261 72 Thermal 1292 | 88 38 57 1109 Explosive 290 | . . 135 155 Electromagnetic . | . . . . Impact . | . . . . Slashing 88 | . . . 88 Piercing . | . . . . Highest Corruption . | . . . . Average Corruption . | . . . . Corruption Purged . | . . . . Corruption Blocked . | . . . . Overload Shots . | . . . . Overflow Damage 79 | . . 13 66 Projectiles 74 | . . 8 66 Explosions 5 | . . 5 . Melee . | . . . . Knockbacks 3 | . . 3 . Impact . | . . . . Kinetic 3 | . . 3 . Secondary . | . . . . Self-Inflicted Damage 1 | . . . 1 Shots 1 | . . . 1 Rammed . | . . . . Targets Rammed . | . . . . Kicked . | . . . . Crushed . | . . . . Highest Temperature 99 | 45 36 99 90 Average Temperature 29 | 22 19 51 24 Received Heat Transfer 264 | . . 36 228 Siege Activations . | . . . . Robots Corrupted . | . . . . Combat Hostiles . | . . . . Parts Fried . | . . . . Impact Corruptions . | . . . . Robots Melted . | . . . . Combat Hostiles . | . . . . Parts Melted 3 | 1 1 1 . Heat Transferred 1373 | 333 185 148 707 Parts Sabotaged . | . . . . Parts Stolen . | . . . . Parts Stripped . | . . . . Power Chain Reactions . | . . . . Alert | -11 -10 -10 -10 ------- Run | Yrd Mat Min Sub Peak Influence 134 | 15 62 134 . Initial 24 | . 9 24 . Average 42 | 10 38 47 . Maximum Alert Level . | . . . . Low Security (%) 100 | 100 100 100 . Level 1 . | . . . . Level 2 . | . . . . Level 3 . | . . . . Level 4 . | . . . . Level 5 . | . . . . High Security . | . . . . Max Security . | . . . . Squads Dispatched 3 | . 2 1 . Investigation 2 | . 1 1 . Extermination . | . . . . Reinforcement 1 | . 1 . . Assault . | . . . . Garrison . | . . . . Intercept . | . . . . Searches Triggered . | . . . . Construction Impeded . | . . . . Haulers Reinforced . | . . . . Active Scanning Responses . | . . . . Cargo Convoy Interrupts . | . . . . Stealth | -11 -10 -10 -10 --------- Run | Yrd Mat Min Sub Distress Signals 1 | . . 1 . Communications Jammed . | . . . . Distress Signals . | . . . . Times Spotted 29 | . 4 6 19 Peak Tracking Total 5 | . 2 3 5 Tactical Retreats 4 | . . . 4 Traps | -11 -10 -10 -10 ------- Run | Yrd Mat Min Sub Traps Triggered 1 | . 1 . . Indirectly . | . . . . Trap Hack Attempts . | . . . . Triggered . | . . . . Disarmed . | . . . . Reprogrammed . | . . . . Reused . | . . . . Traps Extracted . | . . . . Installed 2 | . . 2 . Triggered . | . . . . Machines | -11 -10 -10 -10 ---------- Run | Yrd Mat Min Sub Machines Disabled 1 | . . . 1 Max in Single Turn 1 | . . . 1 Machines Repaired . | . . . . Machines Dismantled . | . . . . Machines Sabotaged . | . . . . Overloaded Fab Kills . | . . . . Hacking | -11 -10 -10 -10 --------- Run | Yrd Mat Min Sub Machines Accessed 5 | . 3 1 1 Terminals 3 | . 3 . . Fabricators . | . . . . Repair Stations . | . . . . Recycling Units . | . . . . Scanalyzers . | . . . . Garrison Access . | . . . . Total Hacks 8 | . 6 1 1 Successful 6 | . 4 1 1 Failed 2 | . 2 . . Catastrophic 1 | . 1 . . Database Lockouts . | . . . . Manual 1 | . 1 . . Terminals 6 | . 6 . . Fabricators . | . . . . Repair Stations . | . . . . Recycling Units . | . . . . Scanalyzers . | . . . . Garrison Access . | . . . . Terminal Hacks 6 | . 4 1 1 Prototype ID Bank 2 | . 2 . . Open Door 1 | . . 1 . Locate Traps 1 | . 1 . . Dispatch Records 1 | . 1 . . Derelict Proto ID Bank 1 | . . . 1 Fabricator Hacks . | . . . . Repair Station Hacks . | . . . . Recycling Unit Hacks . | . . . . Scanalyzer . | . . . . Garrison Access Hacks . | . . . . Unauthorized Hacks . | . . . . Terminals . | . . . . Fabricators . | . . . . Repair Stations . | . . . . Recycling Units . | . . . . Scanalyzers . | . . . . Garrison Access . | . . . . Data Cores Recovered . | . . . . Used . | . . . . Hacking Detections 3 | . 3 . . Full Trace Events . | . . . . Feedback Events . | . . . . Feedback Blocked . | . . . . Robot Schematics Acquired . | . . . . Robots Built . | . . . . Authchips . | . . . . Time . | . . . . Total Robot Build Rating . | . . . . Part Schematics Acquired . | . . . . Parts Built . | . . . . Authchips . | . . . . Time . | . . . . Total Part Build Rating . | . . . . Parts Repaired . | . . . . Time . | . . . . Parts Recycled . | . . . . Recycled Matter . | . . . . Retrieved Matter . | . . . . Retrieved Components . | . . . . Parts Scanalyzed . | . . . . Part Schematics Acquired . | . . . . Parts Damaged . | . . . . Bothacking | -11 -10 -10 -10 ------------ Run | Yrd Mat Min Sub Used RIF Installer . | . . . . Robots Hacked . | . . . . Non-combat . | . . . . Combat . | . . . . Robot Hacks Applied . | . . . . Relay Couplers Released . | . . . . Fabnet Peak Effective % . | . . . . Robots Rewired . | . . . . Allies Hacked . | . . . . Hacks Repelled . | . . . . Allies | -11 -10 -10 -10 -------- Run | Yrd Mat Min Sub Total Allies . | . . . . Largest Group . | . . . . Highest-Rated Group . | . . . . Highest-Rated Ally . | . . . . Total Orders . | . . . . Ally Attacks . | . . . . Total Damage . | . . . . Kills . | . . . . Allies Corrupted . | . . . . Allies Melted . | . . . . Intel | -11 -10 -10 -10 ------- Run | Yrd Mat Min Sub Robot Analysis Total . | . . . . Derelict Logs Recovered 3 | . . 2 1 Drone Launches . | . . . . Drone Recoveries . | . . . . Exploration | -11 -10 -10 -10 ------------- Run | Yrd Mat Min Sub Turns Passed 2659 | 114 239 912 1394 Spaces Moved 1840 | 44 184 617 995 Core . | . . . . Treads . | . . . . Legs 927 | 44 184 617 82 Wheels 913 | . . . 913 Hover . | . . . . Flight . | . . . . Fastest Speed 100 | 120 120 120 100 Average Speed 114 | 120 120 120 109 Slowest Speed 120 | 120 120 120 120 Overloaded Moves . | . . . . Propulsion Burnouts . | . . . . Robots Hopped . | . . . . Cave-ins Triggered . | . . . . Exploration Rate (%) 46 | 4 34 99 50 Regions Visited 3 Branch Regions 2 Pre-discovered Areas 1 | . . . 1 Known Exits Taken . | . . . . Unknown Exits Taken 3 | 1 1 1 . Scrap Searched 7 | . . 1 6 Spaces Dug 3 | . . . 3 Terrain Destroyed 30 | . . 18 12 Melee 3 | . . . 3 Projectile 8 | . . 2 6 AOE 19 | . . 16 3 Terrain Rammed . | . . . . Walls Destroyed . | . . . . Machines Disabled . | . . . . Actions | -11 -10 -10 -10 --------- Run | Yrd Mat Min Sub Total 2271 | 86 195 756 1234 Wait 293 | 29 . 102 162 Move 1837 | 43 183 616 995 Hop . | . . . . Pick Up 20 | 2 5 4 9 Fast Attach . | . . . . Attach 11 | . 1 1 9 Detach 1 | . . . 1 Swap 8 | . . 5 3 Drop 11 | 2 2 5 2 Fire 80 | 10 4 21 45 Melee 8 | . . . 8 Ram . | . . . . Kick . | . . . . Crush . | . . . . Escape Stasis . | . . . . Rewire . | . . . . Trap 2 | . . 2 . Miscellaneous . | . . . . Route ------- -11/Scrapyard -10/Materials -10/Mines (discovered 4 exits: [*Mat x2] / [*Exi] / *Sub) -10/Subcaves (discovered 2 exits: [*Mat x2]) History --------- Turn | Location | Event 22 | -11/Scrapyard | Discovered new exit (range 3) 115 | -11/Scrapyard | Entered Materials 205 | -10/Materials | Discovered new exit (range 15) 337 | -10/Materials | Build established: Mutant 354 | -10/Materials | Entered Mines 404 | -10/Mines | Met a Derelict bent on vengeance 428 | -10/Mines | A weapon hastily lodged in a ceiling crevice suddenly fell to the ground 457 | -10/Mines | Assembled infested the area 461 | -10/Mines | Found a hidden stash of uninstalled traps 654 | -10/Mines | Deemed a non-threat by the Exiles lab entrance 654 | -10/Mines | Discovered new exit (range 5) 687 | -10/Mines | Discovered new exit (range 8) 699 | -10/Mines | Met a Derelict shopkeep closing up shop 951 | -10/Mines | Discovered new exit (range 16) 1100 | -10/Mines | Learned Materials garrison access intel 1258 | -10/Mines | Discovered new exit (range 3) 1266 | -10/Mines | Entered Subcaves 1365 | -10/Subcaves | Disturbed a concealed Subdweller 1441 | -10/Subcaves | Discovered new exit (range 16) 1706 | -10/Subcaves | Core integrity fell below 50% 1747 | -10/Subcaves | Lost 4 parts (1n3w) 1751 | -10/Subcaves | Shifting Twisted Machinery released Battle Rifle 1768 | -10/Subcaves | Shifting Twisted Machinery released Battle Rifle 1866 | -10/Subcaves | Disturbed a concealed Subdweller 1945 | -10/Subcaves | Discovered new exit (range 9) 2150 | -10/Subcaves | Visited 4L-MR0's lab 2162 | -10/Subcaves | Found Powered Cannon 2182 | -10/Subcaves | Attached Powered Cannon, gained temporary slot: Power 2369 | -10/Subcaves | Shifting Twisted Machinery released Sub. Laser 2567 | -10/Subcaves | Core integrity fell below 20% 2660 | -10/Subcaves | Destroyed by Y0-FUJ(R) with Subdweller Laser Last Messages --------------- 02580_ Lgt. Assault Rifle fries itself beyond repair. 02581_ Y-45 Defender destroyed. 02591_ Lgt. Ion Engine fries itself beyond repair. 02593_ Imp. Ion Engine fries itself beyond repair. 02594_ Lgt. Assault Rifle fries itself beyond repair. 02595_ Lgt. Armor Plating fries itself beyond repair. 02607_ Mak. Power Source destroyed. 02608_ EF-SS5(R) destroyed. 02627_ Y0-FUJ(R) affixes Scrap Shield Fragment to Scrap Shield. 02634_ Seismic Detector destroyed. 02638_ Com. Wheel destroyed. 02648_ Powered Cannon destroyed. 02648_ Temporary Power slot lost. 02658_ Sml. Storage Unit destroyed. Map ----- +----------------------------------------------------+ | ?????????????# ???????????????????? | | ????????????## ## ???????????????????? | | ??????????### ##?????????????????????????? | | ??????????# ### ###??????????????????????????? | | ??????????# ##?##????????????????????????????? | | ?##??###?## #???????????????????????????????? | | ?# ### ### # #?????????????????????????????? | | ?## ## #?????????????????????????????? | | ## #? #?????????????????????????????? | | ## ######?# ????????????????????????????? | | ### ####???????## ??????????????????????????? | | ?## ###????????# ?????????????????????????? | | ## #?????????# ????????????????????????? | | #??????????# ???????????????????????? | | ##?????????# ## ???????????????????????? | | ##???? ##?## ? ?? ???????????????????????? | | #???# ?? ?? ?????????????????????????? | | #???# ? ????????????????????????????? | | # #???# ## ????????????????????????????? | | # #???# ????????????""""????????????? | | ##??## ????????????" "????????????? | | ## # #???? #??????????? "????????????? | | ?# ###?????? #?????????? ?????????????? | | ## ##????????# ##????????? ?????????????? | | #?????????# #?###????? ??????????????? | | ####??????##### ###@##???? #??????????????? | | # #????????## ##?# %R #??? #??????????????? | | # #??????### ### ! ##?? ###????#???????? | | # #??##### ## #?? ## #???????? | | # #??# " %#### #????????? | | # #### ^ ###% # #?????????? | | # ## #### ##?# #?????????? | | ## ##??##### ^ #??# # # #??????????? | | ?## ##???????######??###### ##??????????? | | ??#######??????????????????????? ##???????????? | | ???????????????????????????????? #????????????? | | ????????????????????????????????? #????????????? | | ?????????????????????????????????####????????????? | | ?????????????????????????????????????????????????? | | ?????????????????????????????????????????????????? | | ?????????????????????????????????????????????????? | | ?????????????????????????????????????????????????? | | ?????????????????????????????????????????????????? | | ?????????????????????????????????????????????????? | | ?????????????????????????????????????????????????? | | ?????????????????????????????????????????????????? | | ?????????????????????????????????????????????????? | | ?????????????????????????????????????????????????? | | ?????????????????????????????????????????????????? | | | +----------------------------------------------------+ Best States ------------- Heat Dissipation 25 Energy Generation 15 Energy Capacity 250 Matter Stores 300 Matter Capacity 300 Sight Range 16 Terrain Scan Density 10 Evasion (%) 55 Item Schematics ----------------- None Robot Schematics ------------------ None Fabricated ------------ Nothing Alien Tech Used ----------------- None Achievements -------------- None Challenges ------------ None Game ------ Seed FusionHypervelocityCompanion Manual? 0 Play Time 00:16:45 Cumulative 72.6 hours Start 2024.08.26 @ 19:31:08 End 2024.08.26 @ 19:46:05 Sessions 1 Manual Loads 0 Difficulty Rogue Special Mode None Game No. 120 Rogue 116 Adventurer 4 Explorer 0 Win Type - Total 0 Types 0/0/0/0/0/0/0/0/0 Lore% 32 Gallery% 45 Achievement% 35 Wizard Run 0 Options --------- Layout 2 ASCII 0 Keyboard 0 Movement Mouse Keybinds 0 Fullscreen 2 Font 24/Smallcaps Map View 50x44 Zoom Use 0% Tactical HUD 1 Map Filters NONE Filters NONE Steam 1 RUN: 07085f14-7dba-4a90-aaf0-372623bf1084